{"text_format":"1","workbook":"xlsx","n_sheets":5,"sheets":["INICIO","PLANIFICACION_PRES","RUTA_ESTRAT","GRAFICOS","OBSERV"],"not_rendered":{"charts":2,"images":1,"macros":1,"external_links":0,"defined_names":7,"comments":0,"pivot_tables":0},"unopened":[],"bounds":{"document_bytes":16777216,"sheet_cells":100000,"rows_first":2000,"rows_last":500,"rows_between":2000,"halvings":0,"cell_chars":16384,"cell_head_chars":4096},"cells_cut":0,"cells_raw":0,"read":"whole","date_system":"1900"}

{"sheet":"INICIO","index":0,"n_rows":23,"n_cols":2,"rows_kept":23,"cut":false,"hidden":false,"merged":[[22,1,22,8]]}
[]
[]
[]
[]
[]
[]
[]
[]
[]
[]
[]
[]
[]
[]
[]
[]
[]
[]
[]
[]
[]
[]
[null,"Plan Estratégico De Tecnologías De La Información y Las Comunicaciones\n2016-2020"]

{"sheet":"PLANIFICACION_PRES","index":1,"n_rows":47,"n_cols":10,"rows_kept":47,"cut":false,"hidden":false,"merged":[[2,1,2,3],[25,1,25,4],[23,6,23,9],[7,1,7,4],[1,1,1,9],[16,1,16,4],[3,6,3,9],[24,1,24,4],[22,6,22,9],[17,1,17,4],[11,6,11,9],[3,1,3,3],[4,1,4,3],[5,1,5,3]]}
[]
[null,"PROYECCIÓN DE EJECUCION PRESUPUESTAL  PETIC 2016-2020 CANAL CAPITAL"]
[]
[null,"PRESUPUESTO ANUAL ",null,null,{"$f":"SUM(Regalos[Presupuesto  2018],Empaquetado[Presupuesto  2018],(Viajes[Presupuesto  2018],(Comidas[Presupuesto  2018],(Entretenimiento[Presupuesto  2018],Varios[Presupuesto  2018]))))","v":{"$error":"#REF!"}},null,"PRODUCCIÓN"]
[null,"PROPUESTA DE PROYECTOS",null,null,{"$f":"SUM((Regalos[Costo Estimado],(Empaquetado[Costo Estimado],(Viajes[Costo Estimado],(Comidas[Costo Estimado],(Entretenimiento[Costo Estimado],(Varios[Costo Estimado])))))))","v":11620300000},null,"Proyecto","Presupuesto  2018","Costo Estimado","Necesidad Presupuestal"]
[null,"DIFERENCIA (por encima/por debajo de lo presupuestado)",null,null,{"$f":"SUM(E4-E5)","v":{"$error":"#REF!"}},null,"Sistemas de gestión de red UHF para micrófonos inalámbricos",{"$f":"RUTA_ESTRAT!D34+RUTA_ESTRAT!E34+RUTA_ESTRAT!F34","v":0},70000000,{"$f":"Comidas[Presupuesto  2018]-Comidas[Costo Estimado]","v":-70000000}]
[null,null,"SISTEMAS",null,null,null,"Equipo de Iluminación",{"$f":"RUTA_ESTRAT!D35+RUTA_ESTRAT!E35+RUTA_ESTRAT!F35","v":0},80000000,{"$f":"Comidas[Presupuesto  2018]-Comidas[Costo Estimado]","v":-80000000}]
[null,"CENTRO DE DATOS Y CONTINGENCIA",null,null,null,null,"Set virtual con tracking",{"$f":"RUTA_ESTRAT!D36+RUTA_ESTRAT!E36+RUTA_ESTRAT!F36","v":352500000},705000000,{"$f":"Comidas[Presupuesto  2018]-Comidas[Costo Estimado]","v":-352500000}]
[null,"Proyecto","Presupuesto  2018","Costo Estimado","Necesidad Presupuestal",null,null,{"$f":"RUTA_ESTRAT!D37+RUTA_ESTRAT!E37+RUTA_ESTRAT!F37","v":352500000}]
[null,"Data center",96000000,110000000,{"$f":"Regalos[Presupuesto  2018]-Regalos[Costo Estimado]","v":-14000000},null,"Total",{"$f":"SUBTOTAL(109,Comidas[Presupuesto  2018])","v":705000000},{"$f":"SUBTOTAL(109,Comidas[Costo Estimado])","v":855000000},{"$f":"SUBTOTAL(109,Comidas[Necesidad Presupuestal])","v":-502500000}]
[null,"San",null,120000000,{"$f":"Regalos[Presupuesto  2018]-Regalos[Costo Estimado]","v":-120000000}]
[null,"Firewall alta disponibilidad",null,50000000,{"$f":"Regalos[Presupuesto  2018]-Regalos[Costo Estimado]","v":-50000000},null,"POSTPRODUCCIÓN"]
[null,"Licenciamiento ",65000000,120000000,{"$f":"Regalos[Presupuesto  2018]-Regalos[Costo Estimado]","v":-55000000},null,"Proyecto","Presupuesto  2018","Costo Estimado","Necesidad Presupuestal"]
[null,"Centro de datos de respaldo ",null,900000000,{"$f":"Regalos[Presupuesto  2018]-Regalos[Costo Estimado]","v":-900000000},null,"Mejoras en la Infraestructura de red",{"$f":"RUTA_ESTRAT!D41+RUTA_ESTRAT!E41+RUTA_ESTRAT!F41","v":33333333.333333332},100000000,{"$f":"Entretenimiento[Presupuesto  2018]-Entretenimiento[Costo Estimado]","v":-66666666.666666672}]
[null,"Renovación tecnológica",60000000,240000000,{"$f":"Regalos[Presupuesto  2018]-Regalos[Costo Estimado]","v":-180000000},null,"Red de datos en Fibra Óptica",{"$f":"RUTA_ESTRAT!D42+RUTA_ESTRAT!E42+RUTA_ESTRAT!F42","v":45000000},45000000,{"$f":"Entretenimiento[Presupuesto  2018]-Entretenimiento[Costo Estimado]","v":0}]
[null,"Total",{"$f":"SUBTOTAL(109,Regalos[Presupuesto  2018])","v":221000000},{"$f":"SUBTOTAL(109,Regalos[Costo Estimado])","v":1540000000},{"$f":"SUBTOTAL(109,Regalos[Necesidad Presupuestal])","v":-1319000000},null,"MAM",{"$f":"RUTA_ESTRAT!D43+RUTA_ESTRAT!E43+RUTA_ESTRAT!F43","v":280000000},280000000,{"$f":"Entretenimiento[Presupuesto  2018]-Entretenimiento[Costo Estimado]","v":0}]
[null,null,null,null,null,null,"Sistema de Archivo",{"$f":"RUTA_ESTRAT!D44+RUTA_ESTRAT!E44+RUTA_ESTRAT!F44","v":1200000000},1200000000,{"$f":"Entretenimiento[Presupuesto  2018]-Entretenimiento[Costo Estimado]","v":0}]
[null,"SOFTWARE Y GESTIÓN DOCUMENTAL",null,null,null,null,"Proyecto de Digitalización",{"$f":"RUTA_ESTRAT!D45+RUTA_ESTRAT!E45+RUTA_ESTRAT!F45","v":833333333.33333337},2500000000,{"$f":"Entretenimiento[Presupuesto  2018]-Entretenimiento[Costo Estimado]","v":-1666666666.6666665}]
[null,"Proyecto","Presupuesto  2018","Costo Estimado","Necesidad Presupuestal",null,"Almacenamiento",{"$f":"RUTA_ESTRAT!D46+RUTA_ESTRAT!E46+RUTA_ESTRAT!F46","v":125000000},250000000,{"$f":"Entretenimiento[Presupuesto  2018]-Entretenimiento[Costo Estimado]","v":-125000000}]
[null,"Sistema integrado de gestión documental ",60000000,100000000,{"$f":"Empaquetado[Presupuesto  2018]-Empaquetado[Costo Estimado]","v":-40000000},null,"Graficación y edición",{"$f":"RUTA_ESTRAT!E47+RUTA_ESTRAT!F47+RUTA_ESTRAT!#REF!","v":{"$error":"#REF!"}},60000000,{"$f":"Entretenimiento[Presupuesto  2018]-Entretenimiento[Costo Estimado]","v":{"$error":"#REF!"}}]
[null,"sistema de gestión empresarial",null,1500000000,{"$f":"Empaquetado[Presupuesto  2018]-Empaquetado[Costo Estimado]","v":-1500000000},null,"Tratamiento de audio",{"$f":"RUTA_ESTRAT!D48+RUTA_ESTRAT!E48+RUTA_ESTRAT!F48","v":0},25000000,{"$f":"Entretenimiento[Presupuesto  2018]-Entretenimiento[Costo Estimado]","v":-25000000}]
[null,null,null,null,{"$f":"Empaquetado[Presupuesto  2018]-Empaquetado[Costo Estimado]","v":0},null,"Total",{"$f":"SUBTOTAL(109,Entretenimiento[Presupuesto  2018])","v":{"$error":"#REF!"}},{"$f":"SUBTOTAL(109,Entretenimiento[Costo Estimado])","v":4460000000},{"$f":"SUBTOTAL(109,Entretenimiento[Necesidad Presupuestal])","v":{"$error":"#REF!"}}]
[]
[null,"Total",{"$f":"SUBTOTAL(109,Empaquetado[Presupuesto  2018])","v":60000000},{"$f":"SUBTOTAL(109,Empaquetado[Costo Estimado])","v":1600000000},{"$f":"SUBTOTAL(109,Empaquetado[Necesidad Presupuestal])","v":-1540000000},null,"EMISIÓN"]
[null,"ÁREA TÉCNICA",null,null,null,null,"Proyecto","Presupuesto  2018","Costo Estimado","Necesidad Presupuestal"]
[null,"CONTRIBUCIONES",null,null,null,null,"Servidor de automatización de respaldo",{"$f":"RUTA_ESTRAT!D53+RUTA_ESTRAT!E53+RUTA_ESTRAT!F53","v":199518472},250000000,{"$f":"Varios[Presupuesto  2018]-Varios[Costo Estimado]","v":-50481528}]
[null,"Proyecto","Presupuesto  2018","Costo Estimado","Necesidad Presupuestal",null,"Canales de tx de backup",{"$f":"RUTA_ESTRAT!D54+RUTA_ESTRAT!E54+RUTA_ESTRAT!F54","v":66666666.666666664},100000000,{"$f":"Varios[Presupuesto  2018]-Varios[Costo Estimado]","v":-33333333.333333336}]
[null,"Ampliación de la infraestructura de transmisión 3G/4G",{"$f":"RUTA_ESTRAT!D23+RUTA_ESTRAT!E23+RUTA_ESTRAT!F23","v":0},120000000,{"$f":"Viajes[Presupuesto  2018]-Viajes[Costo Estimado]","v":-120000000},null,"Infraestructura para monitoreo de señales satelitales",{"$f":"RUTA_ESTRAT!D55+RUTA_ESTRAT!E55+RUTA_ESTRAT!F55","v":18000000},40000000,{"$f":"Varios[Presupuesto  2018]-Varios[Costo Estimado]","v":-22000000}]
[null,"Sistema de recepción de microondas HD",{"$f":"RUTA_ESTRAT!D24+RUTA_ESTRAT!E24+RUTA_ESTRAT!F24","v":0},350000000,{"$f":"Viajes[Presupuesto  2018]-Viajes[Costo Estimado]","v":-350000000},null,"Analizador de espectro",{"$f":"RUTA_ESTRAT!D56+RUTA_ESTRAT!E56+RUTA_ESTRAT!F56","v":20000000},30000000,{"$f":"Varios[Presupuesto  2018]-Varios[Costo Estimado]","v":-10000000}]
[null,"Electrónica de procesamiento",{"$f":"RUTA_ESTRAT!D25+RUTA_ESTRAT!E25+RUTA_ESTRAT!F25","v":0},30000000,{"$f":"Viajes[Presupuesto  2018]-Viajes[Costo Estimado]","v":-30000000},null,"Servicio de retorno de operadores de TV por suscripción",{"$f":"RUTA_ESTRAT!D57+RUTA_ESTRAT!E57+RUTA_ESTRAT!F57","v":8000000},8000000,{"$f":"Varios[Presupuesto  2018]-Varios[Costo Estimado]","v":0}]
[null,"Modems WiFi",{"$f":"RUTA_ESTRAT!D26+RUTA_ESTRAT!E26+RUTA_ESTRAT!F26","v":0},2500000,{"$f":"Viajes[Presupuesto  2018]-Viajes[Costo Estimado]","v":-2500000},null,"Electrónica de procesamiento",{"$f":"RUTA_ESTRAT!D58+RUTA_ESTRAT!E58+RUTA_ESTRAT!F58","v":17500000},35000000,{"$f":"Varios[Presupuesto  2018]-Varios[Costo Estimado]","v":-17500000}]
[null,"Servidor de ingesta Banda Base",{"$f":"RUTA_ESTRAT!D27+RUTA_ESTRAT!E27+RUTA_ESTRAT!F27","v":40000000},40000000,{"$f":"Viajes[Presupuesto  2018]-Viajes[Costo Estimado]","v":0},null,"Plataformas de OTT",{"$f":"RUTA_ESTRAT!D59+RUTA_ESTRAT!E59+RUTA_ESTRAT!F59","v":150000000},150000000,{"$f":"Varios[Presupuesto  2018]-Varios[Costo Estimado]","v":0}]
[null,"Servidor de QC",{"$f":"RUTA_ESTRAT!D28+RUTA_ESTRAT!E28+RUTA_ESTRAT!F28","v":0},50000000,{"$f":"Viajes[Presupuesto  2018]-Viajes[Costo Estimado]","v":-50000000},null,"Señal segundo canal TDT",{"$f":"RUTA_ESTRAT!D60+RUTA_ESTRAT!E60+RUTA_ESTRAT!F60","v":650000000},650000000,{"$f":"Varios[Presupuesto  2018]-Varios[Costo Estimado]","v":0}]
[null,"Encoder de streming",{"$f":"RUTA_ESTRAT!D29+RUTA_ESTRAT!E29+RUTA_ESTRAT!F29","v":25000000},25000000,{"$f":"Viajes[Presupuesto  2018]-Viajes[Costo Estimado]","v":0},null,"Servidores de Replay ",{"$f":"RUTA_ESTRAT!D61+RUTA_ESTRAT!E61+RUTA_ESTRAT!F61","v":195000000},240000000,{"$f":"Varios[Presupuesto  2018]-Varios[Costo Estimado]","v":-45000000}]
[null,"Total",{"$f":"SUBTOTAL(109,Viajes[Presupuesto  2018])","v":65000000},{"$f":"SUBTOTAL(109,Viajes[Costo Estimado])","v":617500000},{"$f":"SUBTOTAL(109,Viajes[Necesidad Presupuestal])","v":-552500000},null,"Micrófonos de diadema",{"$f":"RUTA_ESTRAT!D62+RUTA_ESTRAT!E62+RUTA_ESTRAT!F62","v":10000000},20000000,{"$f":"Varios[Presupuesto  2018]-Varios[Costo Estimado]","v":-10000000}]
[null,null,null,null,null,null,"Micrófonos de solapa o  DPA",{"$f":"RUTA_ESTRAT!D63+RUTA_ESTRAT!E63+RUTA_ESTRAT!F63","v":0},20000000,{"$f":"Varios[Presupuesto  2018]-Varios[Costo Estimado]","v":-20000000}]
[null,null,null,null,null,null,"Complemento a sistema de apuntadores",{"$f":"RUTA_ESTRAT!D64+RUTA_ESTRAT!E64+RUTA_ESTRAT!F64","v":35000000},35000000,{"$f":"Varios[Presupuesto  2018]-Varios[Costo Estimado]","v":0}]
[null,null,null,null,null,null,"Híbrido de 2 líneas",{"$f":"RUTA_ESTRAT!D65+RUTA_ESTRAT!E65+RUTA_ESTRAT!F65","v":0},25000000,{"$f":"Varios[Presupuesto  2018]-Varios[Costo Estimado]","v":-25000000}]
[null,null,null,null,null,null,"Procesadores de señal multipropósito.",{"$f":"RUTA_ESTRAT!D66+RUTA_ESTRAT!E66+RUTA_ESTRAT!F66","v":20000000},25000000,{"$f":"Varios[Presupuesto  2018]-Varios[Costo Estimado]","v":-5000000}]
[null,null,null,null,null,null,"Tarjetas distribuidoras",{"$f":"RUTA_ESTRAT!D67+RUTA_ESTRAT!E67+RUTA_ESTRAT!F67","v":18000000},18000000,{"$f":"Varios[Presupuesto  2018]-Varios[Costo Estimado]","v":0}]
[null,null,null,null,null,null,"Cuatro cadenas de cámara",{"$f":"RUTA_ESTRAT!D68+RUTA_ESTRAT!E68+RUTA_ESTRAT!F68","v":0},720000000,{"$f":"Varios[Presupuesto  2018]-Varios[Costo Estimado]","v":-720000000}]
[null,null,null,null,null,null,"Medusa snake de 16 canales.",{"$f":"RUTA_ESTRAT!D69+RUTA_ESTRAT!E69+RUTA_ESTRAT!F69","v":65000000},65000000,{"$f":"Varios[Presupuesto  2018]-Varios[Costo Estimado]","v":0}]
[null,null,null,null,null,null,"CD player ",{"$f":"RUTA_ESTRAT!D70+RUTA_ESTRAT!E70+RUTA_ESTRAT!F70","v":1800000},1800000,{"$f":"Varios[Presupuesto  2018]-Varios[Costo Estimado]","v":0}]
[null,null,null,null,null,null,"Switchera auxiliar",{"$f":"RUTA_ESTRAT!D71+RUTA_ESTRAT!E71+RUTA_ESTRAT!F71","v":13000000},13000000,{"$f":"Varios[Presupuesto  2018]-Varios[Costo Estimado]","v":0}]
[null,null,null,null,null,null,"Servidor de reproducción",{"$f":"RUTA_ESTRAT!D72+RUTA_ESTRAT!E72+RUTA_ESTRAT!F72","v":90000000},90000000,{"$f":"Varios[Presupuesto  2018]-Varios[Costo Estimado]","v":0}]
[null,null,null,null,null,null,"Tres Computadores portátiles para reproducción.",{"$f":"RUTA_ESTRAT!D73+RUTA_ESTRAT!E73+RUTA_ESTRAT!F73","v":6000000},12000000,{"$f":"Varios[Presupuesto  2018]-Varios[Costo Estimado]","v":-6000000}]
[null,null,null,null,null,null,"Total",{"$f":"SUBTOTAL(109,Varios[Presupuesto  2018])","v":1583485138.6666665},{"$f":"SUBTOTAL(109,Varios[Costo Estimado])","v":2547800000},{"$f":"SUBTOTAL(109,Varios[Necesidad Presupuestal])","v":-964314861.33333337}]

{"sheet":"RUTA_ESTRAT","index":2,"n_rows":76,"n_cols":9,"rows_kept":76,"cut":false,"hidden":false,"merged":[[2,1,2,8],[18,1,18,8],[49,1,49,8],[50,1,51,1],[50,2,51,2],[50,3,50,5],[50,6,51,6],[50,7,51,7],[50,8,72,8],[20,8,28,8],[37,1,37,8],[38,1,39,1],[38,2,39,2],[38,3,38,5],[38,6,39,6],[38,7,39,7],[38,8,47,8],[30,1,30,8],[31,1,32,1],[31,2,32,2],[31,3,31,5],[31,6,32,6],[31,7,32,7],[31,8,35,8],[12,1,12,8],[13,1,14,1],[13,2,14,2],[13,3,13,5],[13,6,14,6],[13,7,14,7],[1,1,1,7],[3,1,3,7],[17,1,17,8],[19,1,19,8],[20,1,21,1],[20,2,21,2],[20,3,20,5],[20,6,21,6],[20,7,21,7],[4,1,5,1],[4,2,5,2],[4,3,4,5],[4,6,5,6],[4,7,5,7],[13,8,16,8],[4,8,11,8]]}
[]
[null,"HOJA DE RUTA"]
[null,"SISTEMAS"]
[null,"CENTRO DE DATOS Y CONTINGENCIA"]
[null,"Proyecto","Costo Estimado","PRESUPUESTO",null,null,"TOTAL","NECESIDAD PRESUPUESTAL 2021","OBSERVACIONES"]
[null,null,null,2018,2019,2020]
[null,{"$f":"PLANIFICACION_PRES!B10","v":"Data center"},{"$f":"PLANIFICACION_PRES!D10","v":110000000},58312240,0,73000000,{"$f":"SUM(D7:F7)","v":131312240},{"$f":"C7-G7","v":-21312240}]
[null,{"$f":"PLANIFICACION_PRES!B11","v":"San"},{"$f":"PLANIFICACION_PRES!D11","v":120000000},0,0,120000000,120000000,0]
[null,{"$f":"PLANIFICACION_PRES!B12","v":"Firewall alta disponibilidad"},{"$f":"PLANIFICACION_PRES!D12","v":50000000},0,0,50000000,50000000,0]
[null,{"$f":"PLANIFICACION_PRES!B13","v":"Licenciamiento "},{"$f":"PLANIFICACION_PRES!D13","v":120000000},267870962,67500000,38000000,373370962,-253370962]
[null,{"$f":"PLANIFICACION_PRES!B14","v":"Centro de datos de respaldo "},{"$f":"PLANIFICACION_PRES!D14","v":900000000},0,0,600000000,600000000,300000000]
[null,{"$f":"PLANIFICACION_PRES!B15","v":"Renovación tecnológica"},{"$f":"PLANIFICACION_PRES!D15","v":240000000},{"$f":"60000000+37186469","v":97186469},61800000,60000000,218986469,21013531]
[null,"SOFTWARE Y GESTION DOCUMENTAL"]
[null,"Proyecto","Costo Estimado","PRESUPUESTO",null,null,"TOTAL","NECESIDAD PRESUPUESTAL 2021","OBSERVACIONES"]
[null,null,null,2018,2019,2020]
[null,{"$f":"PLANIFICACION_PRES!B20","v":"Sistema integrado de gestión documental "},{"$f":"PLANIFICACION_PRES!D20","v":100000000},null,null,null,{"$f":"SUM(D16:F16)","v":0},{"$f":"C16-G16","v":100000000}]
[null,{"$f":"PLANIFICACION_PRES!B21","v":"sistema de gestión empresarial"},{"$f":"PLANIFICACION_PRES!D21","v":1500000000},0,0,1125000000,{"$f":"SUM(D17:F17)","v":1125000000},{"$f":"C17-G17","v":375000000}]
[null,"HOJA DE RUTA"]
[null,"AREA TECNICA"]
[null,"CONTRIBUCIONES"]
[null,"Proyecto","Costo Estimado","PRESUPUESTO",null,null,"TOTAL","NECESIDAD PRESUPUESTAL 2021","OBSERVACIONES"]
[null,null,null,2018,2019,2020]
[null,{"$f":"PLANIFICACION_PRES!B28","v":"Ampliación de la infraestructura de transmisión 3G/4G"},{"$f":"PLANIFICACION_PRES!D28","v":120000000},0,0,0,{"$f":"SUM(D23:F23)","v":0},{"$f":"C23-G23","v":120000000}]
[null,{"$f":"PLANIFICACION_PRES!B29","v":"Sistema de recepción de microondas HD"},{"$f":"PLANIFICACION_PRES!D29","v":350000000},0,0,0,0,350000000]
[null,{"$f":"PLANIFICACION_PRES!B30","v":"Electrónica de procesamiento"},{"$f":"PLANIFICACION_PRES!D30","v":30000000},0,0,0,0,30000000]
[null,{"$f":"PLANIFICACION_PRES!B31","v":"Modems WiFi"},{"$f":"PLANIFICACION_PRES!D31","v":2500000},0,0,0,0,2500000]
[null,{"$f":"PLANIFICACION_PRES!B32","v":"Servidor de ingesta Banda Base"},{"$f":"PLANIFICACION_PRES!D32","v":40000000},0,{"$f":"C27/2","v":20000000},{"$f":"C27/2","v":20000000},40000000,0]
[null,{"$f":"PLANIFICACION_PRES!B33","v":"Servidor de QC"},{"$f":"PLANIFICACION_PRES!D33","v":50000000},0,0,0,0,50000000]
[null,{"$f":"PLANIFICACION_PRES!B34","v":"Encoder de streming"},{"$f":"PLANIFICACION_PRES!D34","v":25000000},0,0,{"$f":"C29","v":25000000},25000000,0]
[null,null,{"$f":"SUM(C23:C29)","v":617500000},{"$f":"SUM(D23:D29)","v":0},{"$f":"SUM(E23:E29)","v":20000000},{"$f":"SUM(F23:F29)","v":45000000},{"$f":"SUM(G22:G29)","v":65000000}]
[null,"PRODUCCIÓN"]
[null,"Proyecto","Costo Estimado","PRESUPUESTO",null,null,"TOTAL","NECESIDAD PRESUPUESTAL 2021","OBSERVACIONES"]
[null,null,null,2018,2019,2020]
[null,{"$f":"PLANIFICACION_PRES!G6","v":"Sistemas de gestión de red UHF para micrófonos inalámbricos"},{"$f":"PLANIFICACION_PRES!I6","v":70000000},0,0,0,0,{"$f":"C34-G34","v":70000000}]
[null,{"$f":"PLANIFICACION_PRES!G7","v":"Equipo de Iluminación"},{"$f":"PLANIFICACION_PRES!I7","v":80000000},0,0,0,{"$f":"SUM(D35:F35)","v":0},{"$f":"C35-G35","v":80000000}]
[null,{"$f":"PLANIFICACION_PRES!G8","v":"Set virtual con tracking"},{"$f":"PLANIFICACION_PRES!I8","v":705000000},0,{"$f":"C36/4","v":176250000},{"$f":"C36/4","v":176250000},{"$f":"SUM(D36:F36)","v":352500000},{"$f":"C36-G36","v":352500000}]
[null,null,{"$f":"SUM(C31:C36)","v":855000000},{"$f":"SUM(D34:D36)","v":0},{"$f":"SUM(E34:E36)","v":176250000},{"$f":"SUM(F34:F36)","v":176250000},{"$f":"SUM(G34:G36)","v":352500000}]
[null,"POSTPRODUCCIÓN"]
[null,"Proyecto","Costo Estimado","PRESUPUESTO",null,null,"TOTAL","NECESIDAD PRESUPUESTAL 2021","OBSERVACIONES"]
[null,null,null,2018,2019,2020]
[null,{"$f":"PLANIFICACION_PRES!G14","v":"Mejoras en la Infraestructura de red"},{"$f":"PLANIFICACION_PRES!I14","v":100000000},0,{"$f":"C41/3","v":33333333.333333332},0,{"$f":"SUM(D41:F41)","v":33333333.333333332},{"$f":"C41-G41","v":66666666.666666672}]
[null,{"$f":"PLANIFICACION_PRES!G15","v":"Red de datos en Fibra Óptica"},{"$f":"PLANIFICACION_PRES!I15","v":45000000},0,0,{"$f":"C42","v":45000000},45000000,0]
[null,{"$f":"PLANIFICACION_PRES!G16","v":"MAM"},{"$f":"PLANIFICACION_PRES!I16","v":280000000},{"$f":"0","v":0},{"$f":"C43","v":280000000},0,280000000,0]
[null,{"$f":"PLANIFICACION_PRES!G17","v":"Sistema de Archivo"},{"$f":"PLANIFICACION_PRES!I17","v":1200000000},0,{"$f":"C44/2","v":600000000},{"$f":"C44/2","v":600000000},1200000000,0]
[null,{"$f":"PLANIFICACION_PRES!G18","v":"Proyecto de Digitalización"},{"$f":"PLANIFICACION_PRES!I18","v":2500000000},0,0,{"$f":"C45/3","v":833333333.33333337},833333333.33333337,1666666666.6666665]
[null,{"$f":"PLANIFICACION_PRES!G19","v":"Almacenamiento"},{"$f":"PLANIFICACION_PRES!I19","v":250000000},{"$f":"0","v":0},0,{"$f":"C46/2","v":125000000},125000000,125000000]
[null,{"$f":"PLANIFICACION_PRES!G20","v":"Graficación y edición"},{"$f":"PLANIFICACION_PRES!I20","v":60000000},0,{"$f":"40000000","v":40000000},{"$f":"20000000","v":20000000},{"$f":"SUM(E47:F47)","v":60000000},0]
[null,{"$f":"PLANIFICACION_PRES!G21","v":"Tratamiento de audio"},{"$f":"PLANIFICACION_PRES!I21","v":25000000},null,null,null,0,25000000]
[null,null,{"$f":"SUM(C42:C48)","v":4360000000},{"$f":"SUM(D41:D48)","v":0},{"$f":"SUM(E41:E48)","v":953333333.33333325},{"$f":"SUM(F41:F48)","v":1623333333.3333335},{"$f":"SUM(G41:G48)","v":2576666666.6666665}]
[null,"EMISION"]
[null,"Proyecto","Costo Estimado","PRESUPUESTO",null,null,"TOTAL","NECESIDAD PRESUPUESTAL 2021","OBSERVACIONES"]
[null,null,null,2018,2019,2020]
[null,{"$f":"PLANIFICACION_PRES!G26","v":"Servidor de automatización de respaldo"},199518472,199518472,0,0,{"$f":"SUM(D53:F53)","v":199518472},{"$f":"C53-G53","v":0}]
[null,{"$f":"PLANIFICACION_PRES!G27","v":"Canales de tx de backup"},{"$f":"PLANIFICACION_PRES!I27","v":100000000},0,{"$f":"C54/3","v":33333333.333333332},{"$f":"C54/3","v":33333333.333333332},66666666.666666664,33333333.333333336]
[null,{"$f":"PLANIFICACION_PRES!G28","v":"Infraestructura para monitoreo de señales satelitales"},{"$f":"PLANIFICACION_PRES!I28","v":40000000},0,18000000,0,{"$f":"SUM(D55:F55)","v":18000000},22000000]
[null,{"$f":"PLANIFICACION_PRES!G29","v":"Analizador de espectro"},{"$f":"PLANIFICACION_PRES!I29","v":30000000},0,{"$f":"20000000","v":20000000},0,{"$f":"SUM(D56:F56)","v":20000000},10000000]
[null,{"$f":"PLANIFICACION_PRES!G30","v":"Servicio de retorno de operadores de TV por suscripción"},{"$f":"PLANIFICACION_PRES!I30","v":8000000},0,4000000,4000000,{"$f":"SUM(D57:F57)","v":8000000},0]
[null,{"$f":"PLANIFICACION_PRES!G31","v":"Electrónica de procesamiento"},{"$f":"PLANIFICACION_PRES!I31","v":35000000},0,{"$f":"C58/2","v":17500000},0,17500000,17500000]
[null,{"$f":"PLANIFICACION_PRES!G32","v":"Plataformas de OTT"},{"$f":"PLANIFICACION_PRES!I32","v":150000000},0,0,150000000,150000000,0]
[null,{"$f":"PLANIFICACION_PRES!G33","v":"Señal segundo canal TDT"},{"$f":"PLANIFICACION_PRES!I33","v":650000000},0,0,650000000,650000000,0]
[null,{"$f":"PLANIFICACION_PRES!G34","v":"Servidores de Replay "},195000000,195000000,0,0,{"$f":"SUM(D61:F61)","v":195000000},{"$f":"C61-G61","v":0}]
[null,{"$f":"PLANIFICACION_PRES!G35","v":"Micrófonos de diadema"},{"$f":"PLANIFICACION_PRES!I35","v":20000000},0,0,{"$f":"C62/2","v":10000000},10000000,10000000]
[null,{"$f":"PLANIFICACION_PRES!G36","v":"Micrófonos de solapa o  DPA"},{"$f":"PLANIFICACION_PRES!I36","v":20000000},0,0,0,0,20000000]
[null,{"$f":"PLANIFICACION_PRES!G37","v":"Complemento a sistema de apuntadores"},{"$f":"PLANIFICACION_PRES!I37","v":35000000},0,{"$f":"C64","v":35000000},0,35000000,0]
[null,{"$f":"PLANIFICACION_PRES!G38","v":"Híbrido de 2 líneas"},{"$f":"PLANIFICACION_PRES!I38","v":25000000},0,0,0,0,25000000]
[null,{"$f":"PLANIFICACION_PRES!G39","v":"Procesadores de señal multipropósito."},{"$f":"PLANIFICACION_PRES!I39","v":25000000},0,20000000,0,20000000,5000000]
[null,{"$f":"PLANIFICACION_PRES!G40","v":"Tarjetas distribuidoras"},{"$f":"PLANIFICACION_PRES!I40","v":18000000},0,0,{"$f":"C67","v":18000000},18000000,0]
[null,{"$f":"PLANIFICACION_PRES!G41","v":"Cuatro cadenas de cámara"},{"$f":"PLANIFICACION_PRES!I41","v":720000000},0,0,0,0,720000000]
[null,{"$f":"PLANIFICACION_PRES!G42","v":"Medusa snake de 16 canales."},{"$f":"PLANIFICACION_PRES!I42","v":65000000},0,{"$f":"C69","v":65000000},0,65000000,0]
[null,{"$f":"PLANIFICACION_PRES!G43","v":"CD player "},{"$f":"PLANIFICACION_PRES!I43","v":1800000},0,1800000,0,1800000,0]
[null,{"$f":"PLANIFICACION_PRES!G44","v":"Switchera auxiliar"},{"$f":"PLANIFICACION_PRES!I44","v":13000000},0,0,{"$f":"C71","v":13000000},13000000,0]
[null,{"$f":"PLANIFICACION_PRES!G45","v":"Servidor de reproducción"},{"$f":"PLANIFICACION_PRES!I45","v":90000000},0,{"$f":"C72","v":90000000},0,90000000,0]
[null,{"$f":"PLANIFICACION_PRES!G46","v":"Tres Computadores portátiles para reproducción."},{"$f":"PLANIFICACION_PRES!I46","v":12000000},null,0,{"$f":"C73/2","v":6000000},6000000,6000000]
[null,null,{"$f":"SUM(C67:C73)","v":919800000},{"$f":"SUM(D53:D73)","v":394518472},{"$f":"SUM(E66:E73)","v":176800000},{"$f":"SUM(F66:F73)","v":37000000},{"$f":"SUM(G66:G73)","v":213800000}]
[]
[null,null,{"$f":"C30+C37+C49+C74","v":6752300000},{"$f":"D30+D37+D49+D74","v":394518472},{"$f":"E30+E37+E49+E74","v":1326383333.3333333},{"$f":"F30+F37+F49+F74","v":1881583333.3333335},{"$f":"G30+G37+G49+G74","v":3207966666.6666665}]

{"sheet":"GRAFICOS","index":3,"n_rows":32,"n_cols":5,"rows_kept":32,"cut":false,"hidden":false,"merged":[[7,1,7,3],[8,1,8,3],[9,1,9,3],[28,1,29,3],[6,1,6,4]]}
[]
[]
[]
[]
[]
[]
[null,"CUADRO PRESUPUESTAL 2018-2020"]
[null,"PRESUPTO 2018",null,null,{"$f":"SUM(Regalos[Presupuesto  2018],Empaquetado[Presupuesto  2018],(Viajes[Presupuesto  2018],(Comidas[Presupuesto  2018],(Entretenimiento[Presupuesto  2018],Varios[Presupuesto  2018]))))","v":{"$error":"#REF!"}}]
[null,"PRESUPTO PROYECTADO",null,null,{"$f":"SUM((Regalos[Costo Estimado],(Empaquetado[Costo Estimado],(Viajes[Costo Estimado],(Comidas[Costo Estimado],(Entretenimiento[Costo Estimado],(Varios[Costo Estimado])))))))","v":11620300000}]
[null,"POR DEFINIR ",null,null,{"$f":"SUM(E8-E9)","v":{"$error":"#REF!"}}]
[]
[]
[]
[]
[]
[]
[]
[]
[]
[]
[]
[]
[]
[]
[]
[]
[]
[]
[null,"PROYECTOS PLANTEADOS PETIC 2016-2020"]
[]
[null,"PROYECTOS","FINANCIADOS 2018","POR FINANCIAR"]
[null,47,32,{"$f":"B32-C32","v":15}]

{"sheet":"OBSERV","index":4,"n_rows":75,"n_cols":3,"rows_kept":75,"cut":false,"hidden":false,"merged":[[52,0,53,2],[4,0,5,2],[14,0,15,2],[22,0,23,2],[33,0,34,2],[40,0,41,2]]}
[]
[]
[]
[]
["CENTRO DE DATOS Y CONTINGENCIA"]
[]
[1,"data center","los recursos asignados para mantenimiento de infraestructura y centro de datos se afectaran en un 25% del rubro para la implementación de acciones de actualización relacionadas con su funcionamiento"]
[2,"san","unidades de almacenamiento masivo, requieren de financiación para su apropiación, la inversión debería ser única, debido a su alta criticidad. "]
[3,"firewall","contemplar la contingencia del corta fuegos del canal con el fin de mantener la operatividad y seguridad del recurso de red."]
[4,"licenciamiento","actualización progresiva del licenciamiento dando prioridad a el paquete de oficina y sistemas operativos."]
[5,"datacenter de respaldo","sujeto a planes de virtualizacion de la infraestructura de respaldo, y/o implementación en otras ubicaciones fisicas del canal o entidades del distrito "]
[6,"renovación tecnológica","Requiere planeación y disponibilidad presupuestal a 2021 para alcanzar el objetivo, sin embargo no se tiene en cuenta la depreciación de los bienes en los 5 años de renovación "]
[]
[]
["SOFTWARE Y GESTION DOCUMENTAL"]
[]
[1,"Sistema integrado de gestión documental "]
[2,"sistema de gestión empresarial","la implementacion del ERP se puede realizar por fases ya sea de arrendamiento de las aplicaciones o por pagos mensuales que comprometeran la ejecucion presupuestal hasta la vigencia 2021, en un canon mensual de 31,250,000"]
[]
[]
[]
[]
["CONTRIBUCIONES"]
[]
[1,"Ampliación de la infraestructura de transmisión 3G/4G","Se recomienda buscar una fuente de financiación que ppermita expandir esta tecnología a otras marcas con el fin de ampliar posibilidades de contribución con otros puntos a nivel mundial además de abrir mercado eliminando proveedor exclusivo en Canal Capital."]
[2,"Sistema de recepción de microondas HD","Depende de la línea que de la alta dirección del canal. La coordinación técnica recomienda invertir en ello con el fin de no perder la frecuencia asignada."]
[3,"Electrónica de procesamiento","Invrsión necesaria, puede hacerse de manera parcial."]
[4,"Modems WiFi","Se proyecta cubrimineto con recursos propios."]
[5,"Servidor de ingesta Banda Base","Se proyecta cubrimineto parcial con recursos propios en los próximos tres años."]
[6,"Servidor de QC","Su financiación puede trasladarse para el siguiente cuatrieonio."]
[7,"Encoder de streming","Se proyecta cubrimineto parcial con recursos propios en los próximos tres años."]
[]
[]
["PRODUCCION"]
[]
[1,"Sistemas de gestión de red UHF para micrófonos inalámbricos","Su financiación puede trasladarse para el siguiente cuatrieonio."]
[2,"Equipo de Iluminación","Necesario buscar financiación para ello si se invierte en set virtual."]
[3,"Set virtual con tracking","Conviene buscar financiación por proyecto especial o terceros ante la necesidad de reducir costos en escenografía y optimización de espacios. "]
[]
[]
["POSTPRODUCCION"]
[]
[1,"Mejoras en la Infraestructura de red","Se proyecta cubrimineto parcial con recursos propios en los próximos tres años."]
[2,"Red de datos en Fibra Óptica","Se proyecta cubrimineto parcial con recursos propios en los próximos tres años."]
[3,"MAM","Proyecto de inversión por etapas al que por su monto se debiera buscar recursos por un ente externo."]
[4,"Sistema de Archivo","Proyecto de inversión por etapas al que por su monto se debiera buscar recursos por un ente externo."]
[5,"Proyecto de Digitalización","Proyecto de inversión por etapas al que por su monto se debiera buscar recursos por un ente externo."]
[6,"Almacenamiento","Necesario realizar inversión así sea de manera parcial para garantizar sufuciencia para cubrir producción en crecimiento."]
[7,"Graficación y edición","Se proyecta cubrimineto con recursos propios."]
[8,"Tratamiento de audio","Su financiación puede trasladarse para el siguiente cuatrieonio."]
[]
[]
["EMISION"]
[]
[1,"Servidor de automatizción de respaldo","A financiar  principalmente por ANTV. "]
[2,"Canales de tx de backup","Necesario realizar inversión así sea de manera parcial para garantizar redundancia de los dos canales."]
[3,"Infraestructura para monitoreo de señales satelitales","Se proyecta cubrimineto parcial con recursos propios. Necesario buscar fuente de financiación alterna. "]
[4,"Analizador de espectro","Se proyecta cubrimineto parcial con recursos propios. Necesario buscar fuente de financiación alterna. "]
[5,"Servicio de retorno de operadores de TV por suscripción","Al tratarse de un servicio, sería conveniente que pudiese ser contratado por servicios administrativos."]
[6,"Electrónica de procesamiento","Se proyecta cubrimineto parcial con recursos propios en los próximos tres años."]
[7,"Plataformas de OTT","Conviene buscar financiación por proyecto especial o terceros ante la necesidad de seguir avanzando en la incursión a nuevas plataformas. "]
[8,"Señal segundo canal TDT","Debiera ser financiado por la ANTV."]
[9,"Servidores de Replay ","Conviene buscar financiación por proyecto especial o terceros ante la necesidad de cubrir con suficiencia tranmsiones deportivas."]
[10,"Micrófonos de diadema","Se proyecta cubrimineto parcial con recursos propios en los próximos tres años."]
[11,"Micrófonos de solapa o  DPA","Se proyecta cubrimineto parcial con recursos propios en los próximos tres años."]
[12,"Complemento a sistema de apuntadores","Se proyecta cubrimineto parcial con recursos propios en el próximo año."]
[13,"Híbrido de 2 líneas","Su financiación puede trasladarse para el siguiente cuatrieonio."]
[14,"Procesadores de señal multipropósito.","Se proyecta cubrimineto parcial con recursos propios en los próximos tres años."]
[15,"Tarjetas distribuidoras","Se proyecta cubrimineto parcial con recursos propios en los próximos tres años."]
[16,"Cuatro cadenas de cámara","Conviene buscar financiación por proyecto especial o terceros ante la necesidad de cubrir con suficiencia las distintas tranmsiones."]
[17,"Medusa snake de 16 canales.","Su financiación puede trasladarse para el siguiente cuatrieonio."]
[18,"CD player ","Se proyecta cubrimineto con recursos propios."]
[19,"Switchera auxiliar","Su financiación puede trasladarse para el siguiente cuatrieonio."]
[20,"Servidor de reproducción","Necesario realizar inversión para garantizar sufuciencia para cubrir tranmisiones en exteriores."]
[21,"Tres Computadores portátiles para reproducción.","Se proyecta cubrimineto con recursos propios en los próximos tres años."]